Cogmind - Beta 14 @@@ ROGUE MODE // 2025.01.01 @ 21:53:32 Player: lazy_engineer Result: Destroyed by D-53 Grenadier with Mini Grenade Launcher Performance ------------- Evolutions (0) 0 Regions Visited (2) 400 Robots Destroyed (14) 70 Value Destroyed (321) 321 Prototype IDs (0) 0 Alien Tech Used (0) 0 Bonus (39) 39 TOTAL SCORE: 830 Bonus ------- Follower Combat Kills 39 Cogmind --------- Core Integrity 0/250 Matter 224/300 Energy 100/100 System Corruption 0% Temperature Cool (0) Movement Core (100) Ox1 Location -10/Mines Parts ------- > --- POWER (1) -------- (None) > --- PROPULSION (2) --- (None) > --- UTILITY (2) ------ Small Storage Unit Visual Processing Unit > --- WEAPON (2) ------- (None) > --- INVENTORY (8) ---- Ion Engine Light Nuclear Core Light Treads Wheel Hacking Suite Mining Laser Hammer Peak State ------------ > --- POWER ------------ Light Ion Engine > --- PROPULSION ------- Light Treads Wheel > --- UTILITY ---------- Small Storage Unit Visual Processing Unit > --- WEAPON ----------- Light Cannon Light Cannon > --- INVENTORY -------- Ion Engine Light Nuclear Core Light Treads Wheel Hacking Suite EM Pulse Gun Grenade Launcher Mining Laser [Rating: 9] Favorites ----------- Power Light Ion Engine Engine Light Ion Engine Propulsion Wheel Treads Light Treads Wheel Wheel Utility Small Storage Unit Storage Small Storage Unit Processor Visual Processing Unit Weapon Light Cannon Energy Gun EM Pulse Gun Ballistic Cannon Light Cannon Launcher Grenade Launcher Impact Weapon Hammer Build | -11 -10 -10 ------- Run | Yrd Mat Min Slots Evolved . | . . . Power . | . . . Propulsion . | . . . Utility . | . . . Weapon . | . . . Parts Attached 12 | 6 4 2 Power 1 | 1 . . Engine 1 | 1 . . Core . | . . . Reactor . | . . . Propulsion 2 | 2 . . Treads 1 | 1 . . Leg . | . . . Wheel 1 | 1 . . Hover . | . . . Flight . | . . . Utility 2 | 1 1 . Device . | . . . Storage 1 | 1 . . Processor 1 | . 1 . Hackware . | . . . Protection . | . . . Artifact . | . . . Weapon 7 | 2 3 2 Energy Gun 2 | 2 . . Energy Cannon . | . . . Ballistic Gun . | . . . Ballistic Cannon 3 | . 2 1 Launcher 1 | . . 1 Special Weapon . | . . . Impact Weapon 1 | . 1 . Slashing Weapon . | . . . Piercing Weapon . | . . . Special Melee Weapon . | . . . Unidentified Prototypes . | . . . Parts Lost 7 | . 1 6 Power 1 | . . 1 Propulsion 2 | . . 2 Utility . | . . . Weapon 4 | . 1 3 Highest Loss Streak 6 | . 1 6 To Critical Strikes . | . . . Average Slot Usage (%) 89 | . 90 80 Engine 13 | . 14 9 Treads 13 | . 14 7 Wheel 13 | . 14 11 Storage 14 | . 14 14 Processor 7 | . 6 14 Energy Gun 7 | . 9 . Ballistic Cannon 16 | . 16 16 Impact Weapon 1 | . . 7 Peak Build Rating 9 | 6 9 9 Average Rating 6 | 4 6 8 On Entrance 5 | . 6 9 Naked Turns . | . . . Heaviest Build 14 | 12 14 13 Greatest Support 10 | 10 10 10 Greatest Overweight (x) 1 | 1 1 1 Average Overweight (x) . | . . 1 Largest Inventory Capacity 8 | 8 8 8 Average Capacity 7 | 7 8 8 Most Carried 8 | 5 8 8 Average Carried 6 | 3 6 7 Final Capacity 8 | 8 8 8 Final Carried 8 | 4 8 7 Class Distribution -------------------- 100% | Mutant Dominant Class ---------------- Mutant | -10/Materials Mutant | -10/Mines Resources | -11 -10 -10 ----------- Run | Yrd Mat Min Matter Collected 386 | 260 126 . Remotely . | . . . Salvage Created 426 | 120 306 . Parts 32 | 8 24 . Haulers Intercepted . | . . . Recyclers Shooed . | . . . Parts Field Recycled . | . . . Retrieved Matter . | . . . Parts Self-Destructed . | . . . Prevented . | . . . Kills | -11 -10 -10 ------- Run | Yrd Mat Min Combat Hostiles Destroyed 6 | . 6 . Guns 4 | . 4 . Cannons 2 | . 2 . Classes Destroyed 5 | 2 3 . Tunneler 3 | 3 . . Recycler 1 | 1 . . Operator 1 | . 1 . Watcher 3 | . 3 . Grunt 6 | . 6 . Best Kill Streak 4 | 4 3 . Combat Bots Only 3 | . 3 . Max Kills in Single Turn 1 | 1 1 . Gunslinging . | . . . Exploded . | . . . Melee . | . . . Uniques/NPCs Destroyed . | . . . Combat | -11 -10 -10 -------- Run | Yrd Mat Min Hostile Shots Fired 44 | . 36 8 Missed 5 | . 4 1 Damage Taken 871 | . 418 453 Core 273 | . 84 189 Absorbed by Shields . | . . . Core Remaining (%) 100 | 100 . . Volleys Fired 50 | 6 35 9 Largest 2 | 2 2 2 Hottest 80 | 80 80 70 Shots Fired 90 | 12 63 15 Gun 50 | 12 38 . Cannon 38 | . 25 13 Launcher 2 | . . 2 Special . | . . . Kinetic 38 | . 25 13 Thermal . | . . . Explosive 2 | . . 2 Electromagnetic 50 | 12 38 . Robot Hit Streak 8 | 5 8 6 Robot Miss Streak 3 | 2 3 3 Penetration Max . | . . . Secondary Targets . | . . . Shots Hit Robots 52 | 8 36 8 Core Hits 22 | 4 16 2 Critical Kills . | . . . Critical Parts Destroyed . | . . . Critical Strikes 1 | . 1 . Blast 1 | . 1 . Melee Attacks 2 | . 2 . Impact 2 | . 2 . Slashing . | . . . Piercing . | . . . Sneak Attacks . | . . . Combat Hostiles . | . . . Follow-up Attacks . | . . . Damage Inflicted 870 | 154 532 184 Guns 424 | 114 310 . Cannons 381 | . 222 159 Explosions 65 | 40 . 25 Melee . | . . . Ramming . | . . . Kinetic 381 | . 222 159 Thermal 40 | 40 . . Explosive 25 | . . 25 Electromagnetic 424 | 114 310 . Impact . | . . . Slashing . | . . . Piercing . | . . . Highest Corruption . | . . . Average Corruption . | . . . Corruption Purged . | . . . Corruption Blocked . | . . . Overload Shots . | . . . Overflow Damage 10 | 10 . . Projectiles . | . . . Explosions 10 | 10 . . Melee . | . . . Knockbacks 3 | . . 3 Impact . | . . . Kinetic 3 | . . 3 Secondary . | . . . Self-Inflicted Damage . | . . . Shots . | . . . Rammed . | . . . Targets Rammed . | . . . Kicked . | . . . Crushed . | . . . Highest Temperature 317 | 54 317 6 Average Temperature 91 | 21 108 3 Received Heat Transfer 252 | . 252 . Effects 1 | . 1 . Damage (minor) 1 | . 1 . Siege Activations . | . . . Robots Corrupted . | . . . Combat Hostiles . | . . . Parts Fried 2 | 1 1 . Impact Corruptions . | . . . Robots Melted . | . . . Combat Hostiles . | . . . Parts Melted . | . . . Heat Transferred 50 | 50 . . Parts Sabotaged . | . . . Parts Stolen . | . . . Parts Stripped . | . . . Power Chain Reactions 1 | 1 . . Alert | -11 -10 -10 ------- Run | Yrd Mat Min Peak Influence 337 | 20 337 83 Initial 53 | . 13 53 Average 148 | 6 191 37 Maximum Alert Level 1 | . 1 . Low Security (%) 62 | 100 50 100 Level 1 37 | . 49 . Level 2 . | . . . Level 3 . | . . . Level 4 . | . . . Level 5 . | . . . High Security . | . . . Max Security . | . . . Squads Dispatched 1 | . 1 . Investigation . | . . . Extermination . | . . . Reinforcement 1 | . 1 . Assault . | . . . Garrison . | . . . Intercept . | . . . Searches Triggered . | . . . Construction Impeded . | . . . Haulers Reinforced . | . . . Active Scanning Responses . | . . . Cargo Convoy Interrupts . | . . . Stealth | -11 -10 -10 --------- Run | Yrd Mat Min Distress Signals 1 | . 1 . Communications Jammed . | . . . Distress Signals . | . . . Times Spotted 17 | . 15 2 Peak Tracking Total 3 | . 3 2 Tactical Retreats 1 | . 1 . Traps | -11 -10 -10 ------- Run | Yrd Mat Min Traps Triggered . | . . . Indirectly . | . . . Trap Hack Attempts . | . . . Triggered . | . . . Disarmed . | . . . Reprogrammed . | . . . Reused . | . . . Traps Extracted . | . . . Installed . | . . . Triggered . | . . . Machines | -11 -10 -10 ---------- Run | Yrd Mat Min Machines Disabled . | . . . Max in Single Turn . | . . . Machines Repaired . | . . . Machines Dismantled . | . . . Machines Sabotaged . | . . . Overloaded Fab Kills . | . . . Hacking | -11 -10 -10 --------- Run | Yrd Mat Min Machines Accessed 5 | . 5 . Terminals 5 | . 5 . Fabricators . | . . . Repair Stations . | . . . Recycling Units . | . . . Scanalyzers . | . . . Garrison Access . | . . . Total Hacks 15 | . 15 . Successful 6 | . 6 . Failed 9 | . 9 . Catastrophic 1 | . 1 . Database Lockouts . | . . . Manual 11 | . 11 . Terminals 15 | . 15 . Fabricators . | . . . Repair Stations . | . . . Recycling Units . | . . . Scanalyzers . | . . . Garrison Access . | . . . Terminal Hacks 4 | . 4 . Robot Analysis 1 | . 1 . Branch Access Points 1 | . 1 . Terminal Index 1 | . 1 . Zone Layout 1 | . 1 . Fabricator Hacks . | . . . Repair Station Hacks . | . . . Recycling Unit Hacks . | . . . Scanalyzer . | . . . Garrison Access Hacks . | . . . Unauthorized Hacks 2 | . 2 . Terminals 2 | . 2 . Botnet 1 | . 1 . Operators 1 | . 1 . Fabricators . | . . . Repair Stations . | . . . Recycling Units . | . . . Scanalyzers . | . . . Garrison Access . | . . . Data Cores Recovered 1 | . 1 . Used . | . . . Hacking Detections 5 | . 5 . Full Trace Events . | . . . Feedback Events . | . . . Feedback Blocked . | . . . Robot Schematics Acquired . | . . . Robots Built . | . . . Authchips . | . . . Time . | . . . Total Robot Build Rating . | . . . Part Schematics Acquired . | . . . Parts Built . | . . . Authchips . | . . . Time . | . . . Total Part Build Rating . | . . . Parts Repaired . | . . . Time . | . . . Parts Recycled . | . . . Recycled Matter . | . . . Retrieved Matter . | . . . Retrieved Components . | . . . Parts Scanalyzed . | . . . Part Schematics Acquired . | . . . Parts Damaged . | . . . Bothacking | -11 -10 -10 ------------ Run | Yrd Mat Min Used RIF Installer . | . . . Robots Hacked . | . . . Non-combat . | . . . Combat . | . . . Robot Hacks Applied . | . . . Relay Couplers Released . | . . . Fabnet Peak Effective % . | . . . Robots Rewired . | . . . Allies Hacked . | . . . Hacks Repelled . | . . . Allies | -11 -10 -10 -------- Run | Yrd Mat Min Total Allies 3 | . . 3 Largest Group 3 | . . 3 Highest-Rated Group 40 | . . 40 Highest-Rated Ally 16 | . . 16 Total Orders . | . . . Ally Attacks 12 | . . 12 Total Damage 121 | . . 121 Kills 1 | . . 1 Allies Corrupted . | . . . Allies Melted . | . . . Intel | -11 -10 -10 ------- Run | Yrd Mat Min Robot Analysis Total 1 | . 1 . Derelict Logs Recovered . | . . . Drone Launches . | . . . Drone Recoveries . | . . . Exploration | -11 -10 -10 ------------- Run | Yrd Mat Min Turns Passed 539 | 81 405 53 Spaces Moved 316 | 57 232 27 Core 11 | 11 . . Treads . | . . . Legs . | . . . Wheels 305 | 46 232 27 Hover . | . . . Flight . | . . . Fastest Speed 50 | 50 80 95 Average Speed 90 | 82 91 95 Slowest Speed 95 | 95 95 95 Overloaded Moves . | . . . Propulsion Burnouts . | . . . Robots Hopped . | . . . Cave-ins Triggered . | . . . Exploration Rate (%) 26 | 4 61 15 Regions Visited 2 Branch Regions 1 Pre-discovered Areas . | . . . Known Exits Taken 1 | . 1 . Unknown Exits Taken 1 | 1 . . Scrap Searched . | . . . Spaces Dug 2 | . 2 . Terrain Destroyed 16 | 3 2 11 Melee 2 | . 2 . Projectile . | . . . AOE 14 | 3 . 11 Terrain Rammed . | . . . Walls Destroyed . | . . . Machines Disabled . | . . . Actions | -11 -10 -10 --------- Run | Yrd Mat Min Total 472 | 78 356 38 Wait 76 | . 76 . Move 314 | 56 231 27 Hop . | . . . Pick Up 17 | 10 7 . Fast Attach . | . . . Attach 9 | 6 2 1 Detach . | . . . Swap 3 | . 2 1 Drop 1 | . 1 . Fire 50 | 6 35 9 Melee 2 | . 2 . Ram . | . . . Kick . | . . . Crush . | . . . Escape Stasis . | . . . Rewire . | . . . Trap . | . . . Miscellaneous . | . . . Route ------- -11/Scrapyard -10/Materials (discovered 3 exits: [*Mat x2] / *Min) -10/Mines History --------- Turn | Location | Event 14 | -11/Scrapyard | Discovered new exit (range 15) 82 | -11/Scrapyard | Entered Materials 303 | -10/Materials | Discovered new exit (range 5) 319 | -10/Materials | Build established: Mutant 343 | -10/Materials | Identified exit to Mines 353 | -10/Materials | Discovered new exit (range 8) 487 | -10/Materials | Entered Mines 488 | -10/Mines | Assembled infested the area 504 | -10/Mines | Met a Derelict bent on vengeance 510 | -10/Mines | Assisted by bots powering up and referring to "LRC-V3" 526 | -10/Mines | Core integrity fell below 50% 537 | -10/Mines | Core integrity fell below 20% 540 | -10/Mines | Destroyed by D-53 Grenadier with Mini Grenade Launcher Last Messages --------------- 00517_ Lgt. Treads destroyed. 00519_ Mercenary 1a destroyed. 00519_ Grenade Launcher destroyed. 00520_ The unstable cave ceiling collapses. 00521_ Lgt. Ion Engine destroyed. 00522_ T-07 Excavator knocked back. 00523_ Trooper 1b destroyed. 00525_ Trooper 1a destroyed. 00528_ U-05 Engineer lays Concrete. 00531_ D-53 Grenadier knocked back. 00531_ U-05 Engineer lays Concrete. 00534_ The unstable cave ceiling collapses. 00534_ Lgt. Cannon destroyed. 00534_ U-05 Engineer lays Concrete. 00536_ The unstable cave ceiling collapses. 00536_ U-05 Engineer lays Concrete. 00537_ The unstable cave ceiling collapses. 00538_ Wheel destroyed. 00538_ U-05 Engineer lays Concrete. 00540_ Lgt. Cannon destroyed. Map ----- +----------------------------------------------------+ | | | | | | | | | | | | | | | | | | | | | | | | | | | | | | | | | | | | | ???????????????????????????????????????????? | | ??????????????###??????????????????????????? | | ??????????????# ######????????????????????? | | ??????????????# ####?#########???????? | | ?????????????## #?# #???????? | | ?????????????# #?# #???????? | | ??????????????# ### """ #???????? | | ??????????????# @ ## """ #???????? | | ??????????????# ### """ #???????? | | ????????????# # #???????? | | ???????????# ?# ## # #???????? | | ???????????#?? # ### # #???????? | | ????????????? % ?# ###### ##???????? | | ????????????## d ## #????# #????????? | | ?????????????# *%! ## #????# #????????? | | ?????????????## ! u ## #????# #????????? | | ??????????????## ### #???## ######### | | ???????????????## #?# #???# | | ????????????????# % ##? #???# | | ????????????????##% ##??##????# #### | | ?????????????????## ##?????????# #??? | | ??????????????????# ???????????##########??? | | ??????????????????# ???????????????????????? | | ?????????????????? ???????????????????????? | | ??????????????????##???????????????????????? | | ???????????????????????????????????????????? | | ???????????????????????????????????????????? | | ???????????????????????????????????????????? | | ???????????????????????????????????????????? | | ???????????????????????????????????????????? | | ???????????????????????????????????????????? | | ???????????????????????????????????????????? | +----------------------------------------------------+ Best States ------------- Heat Dissipation 25 Energy Generation 10 Energy Capacity 125 Matter Stores 300 Matter Capacity 300 Sight Range 18 Terrain Scan Density 10 Evasion (%) 50 Item Schematics ----------------- None Robot Schematics ------------------ None Fabricated ------------ Nothing Alien Tech Used ----------------- None Achievements -------------- None Challenges ------------ None Game ------ Seed MetafieldQuantumAccelerator Manual? 0 Play Time 00:07:45 Cumulative 48.4 hours Start 2025.01.01 @ 21:44:42 End 2025.01.01 @ 21:53:32 Sessions 1 Manual Loads 0 Difficulty Rogue Special Mode None Game No. 102 Rogue 102 Adventurer 0 Explorer 0 Win Type - Total 0 Types 0/0/0/0/0/0/0/0/0 Lore% 17 Gallery% 31 Achievement% 28 Wizard Run 0 Options --------- Layout 0 ASCII 0 Keyboard 0 Movement Mouse Keybinds 0 Fullscreen 1 Font 24/Smallcaps Map View 76x50 Zoom Use 0% Tactical HUD 1 Map Filters NONE Filters NONE Steam 1 RUN: b3a320da-d9cc-4606-94f1-6146bc4906a2